bitfinex-derivatives/quotes_ETHF0:USTF0_20250708
["timestamp","ask_amount","ask_price","bid_price","bid_amount"]
[1751996659936,3.76194191,2608.5,2608.4,2.2463059]
[1751996660639,3.76194191,2608.5,2608.4,1.2427059]
[1751996660932,3.76194191,2608.5,2608.4,2.2231059]
[1751996661437,3.30173621,2608.5,2608.4,2.2231059]
[1751996662436,2.41274191,2608.5,2608.4,2.2231059]
[1751996663638,0.76663,2608.5,2608.4,2.2231059]
[1751996664534,2.41274191,2608.5,2608.4,2.2231059]
[1751996665434,0.76663,2608.5,2608.4,2.9897559]
[1751996666140,0.76663,2608.5,2608.4,2.2231059]
[1751996666330,0.76663,2608.5,2608.4,2.9897559]
[1751996666534,0.76663,2608.5,2608.4,4.3346559]
[1751996667739,0.76658,2608.7,2608.6,0.76656]
[1751996668037,0.76658,2608.7,2608.6,4.65097781]
[1751996668238,0.76658,2608.7,2608.6,3.0048659]
[1751996668538,0.76658,2608.7,2608.6,2.40566]
[1751996668940,0.76658,2608.7,2608.6,3.72126]
[1751996669336,3.97435,2608.8,2608.7,0.76656]
[1751996669542,0.76655,2608.8,2608.7,2.40566]
[1751996669736,0.76655,2608.8,2608.7,3.72126]
[1751996670236,0.76655,2608.8,2608.7,2.9547]
[1751996670437,0.76659,2608.6,2608.5,1.4366]
[1751996670740,0.76659,2608.6,2608.5,4.3913]
[1751996671243,0.76659,2608.6,2608.5,3.6247]
[1751996671444,0.76659,2608.6,2608.5,4.39132]
[1751996672239,0.76659,2608.6,2608.5,3.6247]
[1751996672438,0.76659,2608.6,2608.5,4.39132]
[1751996673745,0.76659,2608.6,2608.5,2.3091]
[1751996674539,0.76659,2608.6,2608.5,3.07572]
[1751996676541,0.76659,2608.6,2608.5,2.3091]
[1751996677244,0.76659,2608.6,2608.5,1.3135]
[1751996678441,0.76659,2608.6,2608.5,2.3091]
[1751996679044,0.6852,2608.9,2608.8,0.76653]
[1751996679237,6.22061191,2609.1,2608.9,0.76648]
[1751996679238,0.76648,2609.0,2608.9,0.76648]
[1751996679452,3.97426,2609.1,2609.0,2.40557]
[1751996679942,3.97426,2609.1,2609.0,1.6391]
[1751996680141,3.97426,2609.1,2609.0,2.40557]
[1751996680340,3.97426,2609.1,2609.0,1.6391]
[1751996680542,0.76647,2609.0,2608.9,0.76648]
[1751996680743,3.97425,2609.1,2609.0,1.40997]
[1751996681142,3.97425,2609.1,2609.0,1.6391]
[1751996682646,3.97425,2609.1,2609.0,2.40557]
[1751996683348,3.97425,2609.1,2609.0,1.6391]
[1751996683642,3.97425,2609.1,2609.0,0.6435]
[1751996683843,5.32255,2609.1,2609.0,0.6435]
[1751996686954,3.97425,2609.1,2609.0,1.6391]
[1751996688652,5.62036191,2609.1,2609.0,0.6435]
[1751996689042,0.7665,2608.9,2608.8,0.9956]
[1751996689249,0.7665,2608.9,2608.8,1.6391]
[1751996690547,0.76656,2608.7,2608.6,0.9956]
[1751996690857,0.76656,2608.7,2608.6,1.6568]
[1751996691854,0.76656,2608.7,2608.6,2.42339]
[1751996692349,3.56240191,2608.9,2608.6,3.02246017]
[1751996692553,0.76656,2608.7,2608.6,1.42779]
[1751996692755,0.76656,2608.7,2608.6,5.23465999]
[1751996693153,0.76656,2608.7,2608.6,3.05875999]
[1751996693753,0.76656,2608.7,2608.6,2.29216999]
[1751996694255,0.76656,2608.7,2608.6,1.6931]
[1751996696652,2.41267191,2608.7,2608.6,1.6931]
[1751996696860,0.76661,2608.5,2608.4,2.24320761]
[1751996697157,0.76664,2608.4,2608.3,5.45100761]
[1751996697356,0.76664,2608.4,2608.3,6.1087953]
[1751996697556,0.76664,2608.4,2608.3,2.9009953]
[1751996697758,2.05834,2608.4,2608.3,2.9009953]
[1751996699256,2.05834,2608.4,2608.3,0.6612]
[1751996700158,1.2917,2608.4,2608.3,0.6612]
[1751996700452,0.76664,2608.4,2608.3,1.6931]
[1751996701258,0.76661,2608.5,2608.3,2.45977]
[1751996701460,0.76661,2608.5,2608.4,3.27303266]
[1751996701661,0.76661,2608.5,2608.4,4.62423266]
[1751996703262,0.76661,2608.5,2608.4,2.3831]
[1751996703463,0.76656,2608.7,2608.4,4.02921191]
[1751996703768,0.76659,2608.6,2608.5,1.0319]
[1751996704063,0.76659,2608.6,2608.5,1.6931]
[1751996704857,0.76659,2608.6,2608.5,2.45971]
[1751996705063,0.76659,2608.6,2608.5,3.76511]
[1751996705464,0.76657,2608.7,2608.6,0.76657]
[1751996705662,0.76657,2608.7,2608.6,3.10387]
[1751996705860,0.76657,2608.7,2608.6,3.76507]
[1751996706566,0.76657,2608.7,2608.6,2.9985]
[1751996706755,3.44729757,2609.2,2608.6,11.2063]
[1751996706962,3.44729757,2609.5,2609.1,4.85391191]
[1751996707167,3.44729757,2609.5,2609.4,4.63535]
[1751996707359,3.44729757,2609.5,2609.4,7.31336191]
[1751996708165,0.76628,2609.7,2609.5,0.76629]
[1751996708365,3.44729757,2609.8,2609.5,2.11949]
[1751996708666,0.76627,2609.7,2609.6,2.3498]
[1751996708867,0.76627,2609.7,2609.6,1.3179]
[1751996709168,0.76627,2609.7,2609.6,2.08419]
[1751996709367,3.44729757,2609.8,2609.7,0.76626]
[1751996709569,4.21352757,2609.8,2609.7,3.869]
[1751996709764,0.76623,2609.8,2609.7,4.9009]
[1751996710569,0.76623,2609.8,2609.7,3.2078]
[1751996710770,0.76623,2609.8,2609.7,5.66716]
[1751996711069,3.44729757,2610.0,2609.7,6.54701191]
[1751996711261,3.44729757,2610.1,2610.0,0.76617]
[1751996711463,0.76614,2610.1,2610.0,4.63517]
[1751996711663,0.76613,2610.2,2610.0,6.92247]
[1751996711866,0.76613,2610.2,2610.1,1.6722]
[1751996712064,0.76613,2610.2,2610.1,2.3334]
[1751996712361,0.7661,2610.3,2610.1,3.09954]
[1751996712566,0.7661,2610.3,2610.1,2.06764]
[1751996712766,0.7661,2610.3,2610.2,1.0319]
[1751996712968,0.7661,2610.3,2610.2,1.6931]
[1751996714368,0.7661,2610.3,2610.2,2.45922]
[1751996714767,0.7661,2610.3,2610.2,1.6931]
[1751996715772,6.64942528,2610.9,2610.2,1.6931]
[1751996715974,0.76598,2610.7,2610.5,2.41213191]
[1751996716173,0.76598,2610.7,2610.6,1.3495]
[1751996716366,0.76598,2610.7,2610.6,2.3814]
[1751996716870,0.76597,2610.7,2610.6,2.3814]
[1751996717277,0.76597,2610.7,2610.6,2.88815112]
[1751996718479,3.97372,2610.9,2610.7,0.76595]
[1751996718680,3.97373,2610.9,2610.8,1.16729285]
[1751996719074,3.97373,2610.9,2610.8,2.19919285]
[1751996720569,3.97373,2610.9,2610.8,2.23179285]
[1751996720775,3.97373,2610.9,2610.8,2.99773285]
[1751996720979,3.97373,2610.9,2610.8,2.23179285]
[1751996721780,3.97373,2610.9,2610.8,2.99773285]
[1751996721982,0.7659,2611.0,2610.9,0.76591]
[1751996722180,0.76591,2610.9,2610.8,0.76592]
[1751996722382,2.0365,2611.1,2610.8,0.76592]
[1751996722383,0.76588,2611.1,2611.0,0.76588]
[1751996722679,0.76588,2611.1,2611.0,3.67152799]
[1751996722980,0.76585,2611.2,2611.1,0.76583]
[1751996723177,5.12216,2611.5,2611.1,2.25553608]
[1751996723381,0.76579,2611.3,2611.2,1.56173608]
[1751996723577,0.76579,2611.3,2611.2,2.25553608]
[1751996723983,0.76579,2611.3,2611.2,3.02135608]
[1751996724176,5.12198,2611.8,2611.2,7.10911661]
[1751996724381,0.76576,2611.5,2611.4,0.76574]
[1751996724586,0.76573,2611.6,2611.5,0.76571]
[1751996724782,0.76573,2611.6,2611.5,3.0209147]
[1751996724985,0.76573,2611.6,2611.5,2.2552047]
[1751996725586,0.76569,2611.7,2611.6,0.76567]
[1751996725783,0.76569,2611.7,2611.6,1.9077047]
[1751996725984,0.76569,2611.7,2611.6,1.2592047]
[1751996726182,0.76569,2611.7,2611.6,0.6938]
[1751996726388,2.13319,2611.7,2611.6,1.25874822]
[1751996726587,0.76569,2611.7,2611.6,3.02044822]
[1751996726883,0.76569,2611.7,2611.6,2.25474822]
[1751996727081,0.76569,2611.7,2611.6,3.02044822]
[1751996727483,0.76569,2611.7,2611.6,2.25474822]
[1751996727884,0.76569,2611.7,2611.6,3.02044822]
[1751996728684,5.12137,2612.6,2611.7,1.91419]
[1751996728887,5.12137,2612.6,2612.1,1.64611191]
[1751996728888,0.76554,2612.2,2612.1,1.64611191]
[1751996729185,2.41164191,2612.2,2612.1,0.56828222]
[1751996729385,1.2601,2612.4,2612.1,2.21421153]
[1751996729588,0.76548,2612.4,2612.3,0.7655]
[1751996729789,3.2078,2612.4,2612.3,0.56801113]
[1751996729988,0.76547,2612.5,2612.4,0.76545]
[1751996730291,5.12127,2612.7,2612.5,0.76542]
[1751996730292,0.76545,2612.6,2612.5,0.76542]
[1751996730490,0.76545,2612.6,2612.5,2.41153191]
[1751996730688,0.7654,2612.7,2612.6,0.76539]
[1751996731089,0.76541,2612.6,2612.5,4.10133191]
[1751996731387,0.7654,2612.7,2612.6,0.76539]
[1751996731584,0.76537,2612.8,2612.7,0.76536]
[1751996731980,0.76532,2612.9,2612.8,0.76533]
[1751996732184,0.76532,2612.9,2612.8,1.33279609]
[1751996732390,0.76532,2612.9,2612.8,2.02659609]
[1751996732893,0.76531,2613.0,2612.9,0.7653]
[1751996733081,0.76526,2613.2,2613.1,0.76525]
[1751996733282,0.76526,2613.2,2613.1,0.56746609]
[1751996733787,2.77006,2613.2,2613.1,0.56746609]
[1751996733988,2.77006,2613.2,2613.1,1.26126609]
[1751996734300,9.41617191,2613.2,2613.1,6.09e-06]
[1751996734882,0.76555,2612.2,2612.0,2.44817]
[1751996735082,3.2078,2612.3,2611.9,3.2078]
[1751996735387,3.2078,2612.3,2611.8,0.996]
[1751996735388,0.76567,2611.7,2611.5,3.97351]
[1751996735592,0.76565,2611.8,2611.7,0.76566]
[1751996735789,0.76564,2611.8,2611.7,1.6898]
[1751996735982,1.9448,2612.2,2611.7,1.6898]
[1751996736294,0.76557,2612.1,2612.0,0.76556]
[1751996736492,0.76557,2612.1,2612.0,2.45536]
[1751996737581,0.76557,2612.1,2612.0,0.6938]
[1751996737785,0.76561,2611.9,2611.8,0.996]
[1751996737988,0.76561,2611.9,2611.8,1.6898]
[1751996738188,0.7657,2611.6,2611.5,4.96952]
[1751996738493,0.7657,2611.6,2611.5,5.66332]
[1751996738687,0.7657,2611.6,2611.5,4.8976]
[1751996740998,1.91434,2611.5,2611.0,0.996]
[1751996741191,2.0294,2611.5,2611.1,0.6938]
[1751996741392,0.76582,2611.2,2611.1,0.6938]
[1751996742689,0.76582,2611.3,2611.2,0.76581]
[1751996742993,0.76575,2611.5,2611.2,1.6898]
[1751996743192,0.76575,2611.5,2611.4,0.76573]
[1751996743686,0.76579,2611.4,2611.3,0.76577]
[1751996744498,0.76579,2611.4,2611.3,2.45557]
[1751996744794,0.76576,2611.5,2611.4,0.76573]
[1751996744989,2.58695,2611.8,2611.5,0.76569]
[1751996744990,0.6728,2611.8,2611.5,0.76569]
[1751996745189,0.76567,2611.7,2611.6,0.76568]
[1751996745794,0.76567,2611.8,2611.7,0.76565]
[1751996746190,3.2078,2611.9,2611.8,0.76564]
[1751996746394,3.97341,2611.9,2611.8,1.6898]
[1751996746897,0.76561,2611.9,2611.8,1.6898]
[1751996747197,0.76561,2611.9,2611.8,0.6938]
[1751996747399,0.76576,2611.5,2611.4,0.76574]
[1751996747891,0.76576,2611.5,2611.4,1.45956]
[1751996748297,0.76576,2611.4,2611.3,0.996]
[1751996748505,2.10416,2611.4,2611.3,1.6898]
[1751996749001,0.76576,2611.4,2611.3,1.6898]
[1751996750501,0.76585,2611.1,2611.0,3.97367]
[1751996750698,0.76585,2611.2,2611.0,3.8753]
[1751996750898,0.76585,2611.2,2611.1,2.42934]
[1751996751300,0.76585,2611.2,2611.1,1.6635]
[1751996751999,3.41461106,2611.2,2610.7,4.87053036]
[1751996752205,0.76588,2611.0,2610.9,0.6675]
[1751996752504,3.2078,2611.3,2611.2,0.76582]
[1751996752704,3.97361,2611.3,2611.2,0.6675]
[1751996753802,0.76581,2611.3,2611.2,0.6675]
[1751996754500,0.76581,2611.3,2611.2,2.42522]
[1751996755294,0.76581,2611.3,2611.2,1.6594]
[1751996756105,0.76581,2611.3,2611.2,2.42522]
[1751996756608,0.76577,2611.4,2611.3,0.76579]
[1751996757004,0.76577,2611.4,2611.3,1.6594]
[1751996757908,0.76577,2611.4,2611.3,2.42519]
[1751996759006,0.76573,2611.6,2611.5,0.7657]
[1751996759209,0.76573,2611.6,2611.5,2.4251]
[1751996760106,0.76573,2611.6,2611.5,1.6594]
[1751996760300,0.76573,2611.6,2611.5,0.6675]
[1751996760505,0.76576,2611.4,2611.3,0.76578]
[1751996760808,0.76576,2611.4,2611.3,1.43328]
[1751996761008,0.76576,2611.4,2611.3,2.42518]
[1751996761510,0.76576,2611.4,2611.3,1.6594]
[1751996762008,0.76585,2611.1,2611.0,1.40996]
[1751996762214,0.76588,2611.0,2610.9,0.9919]
[1751996762407,0.76588,2611.0,2610.9,1.6594]
[1751996762605,0.76588,2611.0,2610.9,2.42531]
[1751996763105,0.76588,2611.0,2610.9,1.6594]
[1751996763712,0.76588,2611.0,2610.9,2.42531]
[1751996764413,0.76588,2611.0,2610.9,1.6594]
[1751996765513,0.76591,2610.9,2610.8,0.76594]
[1751996765716,0.76591,2610.9,2610.8,1.43344]
[1751996766412,0.76591,2610.9,2610.8,0.6675]
[1751996766811,0.76591,2610.9,2610.8,1.43344]
[1751996767211,0.76591,2610.9,2610.8,2.42534]
[1751996767713,0.76591,2610.9,2610.8,2.42531]
[1751996767915,0.76591,2610.9,2610.8,1.6594]
[1751996768516,0.76591,2610.9,2610.8,0.6675]
[1751996769015,0.76591,2610.9,2610.8,1.43344]
[1751996769618,0.76591,2610.9,2610.8,0.6675]
[1751996769918,0.76591,2610.9,2610.8,1.43344]
[1751996770111,0.76591,2610.9,2610.8,2.42534]
[1751996770313,0.76591,2610.9,2610.8,1.6594]
[1751996770512,0.76591,2610.9,2610.8,0.76594]
[1751996770812,0.76591,2610.9,2610.8,2.42534]
[1751996771016,0.76591,2610.9,2610.8,0.6675]
[1751996771211,0.76594,2610.8,2610.7,3.2078]
[1751996771516,0.76594,2610.8,2610.7,3.8753]
[1751996773314,5.12269,2610.8,2610.2,2.65463036]
[1751996773515,0.76611,2610.2,2610.1,3.2078]
[1751996773814,0.76611,2610.2,2610.1,3.8753]
[1751996778318,0.76611,2610.2,2610.1,0.6675]
[1751996780122,3.97391,2610.2,2610.1,0.6675]
[1751996780320,0.7662,2609.9,2609.8,0.9919]
[1751996780514,0.76623,2609.8,2609.7,3.97406]
[1751996780722,0.76623,2609.8,2609.7,3.8368]
[1751996781321,0.76622,2609.9,2609.8,0.76621]
[1751996781514,0.76622,2609.9,2609.8,1.39521]
[1751996781719,0.76622,2609.9,2609.8,2.38711]
[1751996782116,0.76622,2609.9,2609.8,3.76841]
[1751996784729,3.91768,2610.4,2609.8,13.33238106]
[1751996784921,0.7662,2610.0,2609.9,1.74248]
[1751996785115,0.7662,2610.0,2609.9,2.37148]
[1751996787025,0.76615,2610.2,2610.1,0.76611]
[1751996787323,0.76603,2610.6,2610.5,0.766]
[1751996787627,0.76599,2610.7,2610.6,0.76596]
[1751996787818,0.76596,2610.8,2610.7,0.76592]
[1751996788024,0.76596,2610.8,2610.7,1.39492]
[1751996788225,0.76596,2610.8,2610.7,2.37122]
[1751996790227,3.2078,2611.1,2610.7,1.6053]
[1751996790422,0.76584,2611.2,2611.1,0.76582]
[1751996790620,0.76584,2611.2,2611.1,3.06002]
[1751996790820,0.76581,2611.3,2611.2,0.76578]
[1751996791022,0.76581,2611.3,2611.2,2.37108]
[1751996791425,0.76581,2611.3,2611.2,1.6053]
[1751996791626,0.76581,2611.3,2611.2,0.629]
[1751996792129,0.76581,2611.3,2611.2,1.6053]
[1751996793424,0.76581,2611.3,2611.2,0.629]
[1751996793830,1.91463,2611.2,2610.7,3.97378]
[1751996794033,0.76596,2610.8,2610.7,0.629]
[1751996795128,0.76596,2610.8,2610.7,3.8368]
[1751996796326,0.76596,2610.8,2610.7,4.60279]
[1751996796530,0.76596,2610.8,2610.7,5.57909]
[1751996797229,0.76596,2610.9,2610.8,0.76594]
[1751996797428,0.76596,2610.9,2610.8,1.39494]
[1751996797628,0.76596,2610.9,2610.8,2.37124]
[1751996798527,0.76596,2610.9,2610.8,1.6053]
[1751996799026,0.76596,2610.9,2610.8,2.37126]
[1751996799228,0.76596,2610.9,2610.8,1.6053]
[1751996800129,0.76596,2610.9,2610.8,2.37126]
[1751996800534,0.76596,2610.9,2610.8,0.76596]
[1751996800728,0.76592,2611.0,2610.9,0.76589]
[1751996801032,0.7659,2611.1,2611.0,0.76588]
[1751996801232,0.7659,2611.1,2611.0,3.33978]
[1751996801432,0.7659,2611.1,2611.0,4.31608]
[1751996802931,0.7659,2611.1,2611.0,4.3161]
[1751996803836,0.76587,2611.2,2611.1,0.76583]
[1751996804030,0.76587,2611.2,2611.1,2.37113]
[1751996804731,0.76582,2611.4,2611.3,0.76581]
[1751996804939,0.76582,2611.4,2611.3,2.37111]
[1751996805234,0.76582,2611.4,2611.3,0.629]
[1751996809739,0.76582,2611.4,2611.3,1.6053]
[1751996810533,0.76578,2611.5,2611.4,0.76575]
[1751996810741,0.76578,2611.5,2611.4,1.39815]
[1751996810937,0.76578,2611.5,2611.4,2.37445]
[1751996811334,0.76575,2611.6,2611.5,0.7657]
[1751996811534,4.4976,2612.1,2611.5,10.82426106]
[1751996811738,0.76567,2611.9,2611.8,0.76563]
[1751996812036,0.76567,2611.9,2611.8,2.37433]
[1751996814638,0.76567,2611.9,2611.8,1.6087]
[1751996815636,0.76567,2611.9,2611.8,0.6324]
[1751996815942,0.76572,2611.6,2611.5,5.59585]
[1751996816137,0.76572,2611.6,2611.5,6.22825]
[1751996816940,0.76572,2611.7,2611.6,0.76567]
[1751996817134,0.76572,2611.7,2611.6,2.34157]
[1751996817439,0.76572,2611.7,2611.6,1.5759]
[1751996817857,0.76572,2611.7,2611.6,0.6324]
[1751996818249,0.76578,2611.4,2611.3,4.35811106]
[1751996818433,0.76578,2611.4,2611.3,4.99051106]
[1751996819342,0.76578,2611.4,2611.3,5.75632106]
[1751996820448,0.76577,2611.5,2611.4,0.76575]
[1751996820644,1.43094,2611.6,2611.5,0.76575]
[1751996820844,0.76574,2611.6,2611.5,2.34165]
[1751996822445,0.76574,2611.6,2611.5,0.6324]
[1751996822647,0.76575,2611.5,2611.4,3.2078]
[1751996822845,0.76575,2611.5,2611.4,3.8402]
[1751996825152,0.76575,2611.5,2611.4,4.60598]
[1751996825347,0.76575,2611.5,2611.4,3.8402]
[1751996826150,0.76575,2611.5,2611.4,5.54948]
[1751996827348,0.76575,2611.5,2611.4,4.7837]
[1751996828848,0.76575,2611.6,2611.5,0.76572]
[1751996829049,0.76575,2611.6,2611.5,5.12383106]
[1751996829251,0.76575,2611.6,2611.5,3.98351849]
[1751996829648,0.6652,2611.9,2611.7,0.76566]
[1751996829846,0.6652,2611.9,2611.8,0.9435]
[1751996829847,1.43084,2611.9,2611.8,0.9435]
[1751996830150,0.76564,2612.0,2611.9,0.76559]
[1751996830352,0.76564,2612.0,2611.9,3.98338849]
[1751996830553,0.76564,2612.0,2611.9,2.40748849]
[1751996830852,1.42329,2612.2,2612.1,0.76558]
[1751996831051,1.42329,2612.2,2612.1,2.34148]
[1751996831352,1.42329,2612.2,2612.1,1.5759]
[1751996836349,1.42329,2612.2,2612.1,0.6324]
[1751996837850,1.42329,2612.2,2612.1,1.5759]
[1751996838050,0.76559,2612.2,2612.1,2.34148]
[1751996839154,0.76559,2612.2,2612.1,1.5759]
[1751996839655,0.76559,2612.2,2612.1,0.6324]
[1751996840055,1.45929,2612.2,2612.1,0.6324]
[1751996840447,2.77599,2612.2,2612.1,0.6324]
[1751996840652,1.45929,2612.2,2612.1,2.39568]
[1751996840854,4.5245,2612.6,2612.1,3.54402]
[1751996841051,0.76546,2612.6,2612.5,3.4137243]
[1751996841254,0.76549,2612.4,2612.3,0.76549]
[1751996842258,0.76552,2612.3,2612.2,4.8484543]
[1751996842458,0.76552,2612.3,2612.2,0.6692]
[1751996843159,0.76555,2612.2,2612.1,1.6301]
[1751996843858,2.14135,2612.2,2612.1,1.6301]
[1751996844059,2.14135,2612.2,2611.9,1.6740541]
[1751996844060,0.76561,2612.0,2611.9,1.6740541]
[1751996844359,5.12185,2612.0,2611.7,1.67321448]
[1751996844557,2.0428,2611.9,2611.7,2.35981448]
[1751996844760,2.0428,2611.9,2611.7,0.6866]
[1751996845064,2.0428,2611.9,2611.7,1.45229]
[1751996845065,0.76566,2611.8,2611.7,1.45229]
[1751996845362,0.76566,2611.8,2611.7,0.6866]
[1751996845960,0.76566,2611.8,2611.7,1.45229]
[1751996846158,0.76566,2611.8,2611.7,2.40479]
[1751996846352,0.76566,2611.8,2611.7,0.6866]
[1751996848561,0.76566,2611.8,2611.4,1.67408186]
[1751996848562,0.76575,2611.5,2611.4,1.67408186]
[1751996848865,0.76575,2611.5,2611.4,2.36068186]
[1751996849061,0.76575,2611.5,2611.4,0.6866]
[1751996850565,0.76578,2611.4,2611.3,3.2078]
[1751996850767,0.76578,2611.4,2611.3,3.8944]
[1751996851569,0.76578,2611.4,2611.3,4.8469]
[1751996852570,0.76578,2611.4,2611.3,5.61271]
[1751996854870,0.76578,2611.4,2611.3,7.25482204]
[1751996855274,0.76576,2611.6,2611.5,0.76572]
[1751996855469,0.76578,2611.4,2611.3,5.83438186]
[1751996855771,0.76578,2611.4,2611.3,5.53651204]
[1751996858174,0.76578,2611.4,2611.3,6.30232204]
[1751996858575,0.76578,2611.4,2611.3,7.25482204]
[1751996858777,0.76578,2611.4,2611.3,6.48901204]
[1751996859178,0.76578,2611.4,2611.3,5.53651204]
[1751996860378,0.76578,2611.4,2611.3,3.2078]
[1751996860575,0.76578,2611.4,2611.3,4.84991204]
[1751996860778,0.76578,2611.4,2611.3,6.48901204]
[1751996861279,0.76578,2611.4,2611.3,7.25482204]
[1751996862180,0.76577,2611.5,2611.4,0.76573]
[1751996862382,0.76577,2611.5,2611.4,3.09674204]
[1751996862581,0.76577,2611.5,2611.4,4.39024204]
[1751996863885,0.76577,2611.5,2611.4,6.02934204]
[1751996864380,0.6912,2611.8,2611.4,5.26361204]
[1751996864581,0.76569,2611.7,2611.6,1.64211204]
[1751996865485,0.76569,2611.7,2611.6,3.28121204]
[1751996865787,0.76569,2611.8,2611.7,0.76564]
[1751996865986,0.76566,2611.9,2611.8,0.76563]
[1751996866183,0.76566,2611.9,2611.8,3.78294204]
[1751996866384,0.76566,2611.9,2611.8,4.73544204]
[1751996870684,0.76566,2611.9,2611.8,3.78804204]
[1751996870889,0.76566,2611.9,2611.8,4.74054204]
[1751996871293,0.76566,2611.9,2611.8,3.97491204]
[1751996875699,0.76566,2611.9,2611.8,3.02241204]
[1751996877401,0.76566,2611.9,2611.8,2.33381204]
[1751996877602,2.06726,2611.9,2611.8,2.33381204]
[1751996877898,2.06726,2611.9,2611.8,0.6917]
[1751996879298,2.06726,2611.9,2611.8,2.33381204]
[1751996880197,2.06726,2611.9,2611.8,3.28751204]
[1751996880393,2.06726,2611.9,2611.8,2.33381204]
[1751996880595,0.76566,2611.9,2611.8,1.64211204]
[1751996880802,0.76566,2611.9,2611.8,4.05317204]
[1751996881305,0.76563,2612.1,2612.0,0.76558]
[1751996881597,4.59639676,2612.8,2612.7,0.7654]
[1751996881799,0.76532,2613.0,2612.9,0.76534]
[1751996881998,0.76531,2613.0,2612.9,1.64211204]
[1751996882400,5.74549595,2613.3,2612.9,1.64211204]
[1751996882594,5.74549595,2613.4,2613.2,1.64211204]
[1751996882797,0.7652,2613.4,2613.3,1.64211204]
[1751996884508,0.7652,2613.4,2613.3,3.28751204]
[1751996884698,5.74549595,2613.7,2613.3,3.28751204]
[1751996884903,8.95329595,2613.8,2613.4,3.41032451]
[1751996885104,0.76512,2613.7,2613.6,0.76513]
[1751996885300,0.76517,2613.5,2613.4,9.29951451]
[1751996885499,0.76517,2613.5,2613.4,6.09171451]
[1751996885707,0.76516,2613.6,2613.5,0.76517]
[1751996885903,0.76516,2613.6,2613.5,1.45687]
[1751996886100,0.76516,2613.6,2613.5,1.6454]
[1751996887801,1.91292,2613.6,2613.0,3.2078]
[1751996888002,0.76526,2613.2,2613.0,3.2078]
[1751996888204,5.12053,2613.8,2613.1,5.05572451]
[1751996888408,0.7652,2613.4,2613.2,0.9537]
[1751996888710,0.7652,2613.4,2613.3,4.10202451]
[1751996888905,0.7652,2613.4,2613.3,5.05572451]
[1751996889110,0.7652,2613.4,2613.3,0.6917]
[1751996890311,3.2478,2613.4,2613.0,3.2078]
[1751996890509,1.91307,2613.3,2613.0,0.6917]
[1751996890812,0.76528,2613.1,2613.0,0.6917]
[1751996892203,5.12072,2613.5,2613.0,0.6917]
[1751996892409,0.76528,2613.1,2613.0,6.05119]
[1751996892708,0.76528,2613.1,2613.0,9.46151451]
[1751996893508,0.76524,2613.3,2613.2,0.76522]
[1751996893814,0.76527,2613.2,2613.1,0.76527]
[1751996894006,0.76528,2613.1,2613.0,8.76981451]
[1751996894208,0.76524,2613.3,2613.0,10.60949451]
[1751996894411,0.76522,2613.4,2613.3,0.76521]
[1751996894603,0.76522,2613.4,2613.3,2.11771]
[1751996895312,1.91279,2613.7,2613.3,2.11771]
[1751996895313,4.57635899,2613.7,2613.3,11.2057]
[1751996895613,4.57635899,2613.7,2613.6,7.38326451]
[1751996895813,4.57635899,2613.7,2613.6,8.07496451]
[1751996896013,4.57635899,2613.8,2613.6,9.02865451]
[1751996896311,4.57635899,2613.8,2613.7,1.71881]
[1751996896516,4.57635899,2613.8,2613.7,3.6457]
[1751996897307,4.57635899,2613.9,2613.7,3.6457]
[1751996897613,4.57635899,2613.9,2613.8,3.03488]
[1751996897911,4.57635899,2613.9,2613.8,3.72658]
[1751996898712,4.57635899,2614.0,2613.9,0.76505]
[1751996898913,0.76499,2614.1,2614.0,4.17533451]
[1751996899107,0.76499,2614.1,2614.0,5.82073451]
[1751996899312,0.76499,2614.1,2614.0,5.05572451]
[1751996899614,0.76499,2614.1,2614.0,5.82074451]
[1751996900010,5.74549595,2614.3,2614.1,0.76498]
[1751996900204,5.74549595,2614.3,2614.2,1.45666]
[1751996900413,5.74549595,2614.3,2614.2,4.66446]
[1751996900613,5.74549595,2614.4,2614.3,0.76493]
[1751996900913,0.7649,2614.4,2614.3,2.285]
[1751996901110,0.7649,2614.4,2614.3,0.658]
[1751996901308,6.51039595,2614.4,2614.3,0.658]
[1751996901910,0.7649,2614.4,2614.3,0.658]
[1751996902805,6.47875168,2614.4,2614.3,0.658]
[1751996903509,6.47875168,2614.4,2614.3,1.5966]
[1751996904515,0.7649,2614.4,2614.3,2.36153]
[1751996905519,5.71385168,2614.5,2614.4,0.7649]
[1751996905719,5.71385168,2614.6,2614.5,0.76487]
[1751996906017,6.47867168,2614.7,2614.6,0.76484]
[1751996906220,5.71385168,2614.7,2614.6,2.36144]
[1751996906919,6.47867168,2614.7,2614.6,2.36144]
[1751996907318,5.71385168,2614.7,2614.6,2.36144]
[1751996907715,5.71385168,2614.7,2614.6,3.66094]
[1751996908420,8.04369434,2615.0,2614.9,0.76476]
[1751996908619,8.80841434,2615.1,2615.0,0.76473]
[1751996908821,0.76472,2615.1,2615.0,1.9318095]
[1751996909021,0.76472,2615.1,2615.0,2.8704095]
[1751996909221,0.76472,2615.1,2615.0,2.1056795]
[1751996909812,0.76472,2615.1,2615.0,0.5090795]
[1751996910014,0.76472,2615.1,2615.0,0.658]
[1751996910214,0.76476,2614.9,2614.8,0.9386]
[1751996910524,0.76476,2614.9,2614.8,0.658]
[1751996910724,0.76479,2614.8,2614.7,0.7648]
[1751996910926,0.76484,2614.7,2614.6,0.76483]
[1751996911223,1.3785,2614.9,2614.7,0.76479]
[1751996911224,0.76481,2614.8,2614.7,0.76479]
[1751996911418,0.76481,2614.8,2614.7,1.42279]
[1751996911618,0.76481,2614.8,2614.7,2.36139]
[1751996913031,0.76479,2614.8,2614.7,2.36139]